fUSD/lending_fUSD_20250522
["ID","MTS","AMOUNT","RATE_DAILY","PERIOD"]
[361961642,1747909864875,-1603.83,0.0003315,5]
[361961643,1747909864885,-428.14,0.0003315,5]
[361961644,1747909864894,-463.92,0.0003315,5]
[361961645,1747909864904,-1378.21,0.0003315,5]
[361961646,1747909864913,-11326.17,0.0003315,5]
[361961647,1747909864923,-420.0,0.0003315,5]
[361961648,1747909864932,-229.26302289,0.0003315,5]
[361961649,1747909864941,-300.0,0.0003315,5]
[361961650,1747909864951,-420.0,0.0003315,5]
[361961651,1747909864960,-420.0,0.0003315,5]
[361961652,1747909864971,-420.0,0.0003315,5]
[361961653,1747909864980,-542.14,0.0003315,5]
[361961654,1747909864990,-420.0,0.0003315,5]
[361961655,1747909865000,-1457.48,0.0003315,5]
[361961656,1747909865010,-420.0,0.0003315,5]
[361961657,1747909865020,-932.34,0.0003315,5]
[361961658,1747909865029,-420.0,0.0003315,5]
[361961659,1747909865039,-420.0,0.0003315,5]
[361961660,1747909865049,-496.68,0.0003315,5]
[361961661,1747909865058,-420.0,0.0003315,5]
[361961662,1747909865068,-420.0,0.0003315,5]
[361961663,1747909865077,-1060.44,0.0003315,5]
[361961664,1747909865087,-688.66,0.0003315,5]
[361961665,1747909865096,-1461.11,0.0003315,5]
[361961666,1747909865106,-536.64918079,0.0003315,5]
[361961667,1747909865116,-420.0,0.0003315,5]
[361961668,1747909865126,-420.0,0.0003315,5]
[361961669,1747909865136,-7309.24,0.0003315,5]
[361961670,1747909865146,-914.59,0.0003315,5]
[361961671,1747909865155,-867.11,0.0003315,5]
[361961672,1747909865165,-770.15,0.0003315,5]
[361961673,1747909865174,-420.0,0.0003315,5]
[361961674,1747909865184,-3530.84,0.0003315,5]
[361961675,1747909865193,-850.57,0.0003315,5]
[361961676,1747909865203,-2311.4,0.0003315,5]
[361961677,1747909865212,-420.0,0.0003315,5]
[361961678,1747909865223,-420.0,0.0003315,5]
[361961679,1747909865233,-420.0,0.0003315,5]
[361961680,1747909865243,-420.0,0.0003315,5]
[361961681,1747909865254,-420.0,0.0003315,5]
[361961682,1747909865265,-420.0,0.0003315,5]
[361961683,1747909865276,-917.52,0.0003315,5]
[361961684,1747909865285,-420.0,0.0003315,5]
[361961685,1747909865295,-420.0,0.0003315,5]
[361961686,1747909865305,-420.0,0.0003315,5]
[361961687,1747909865315,-420.0,0.0003315,5]
[361961688,1747909865325,-3570.84,0.0003315,5]
[361961689,1747909865335,-305.36232834,0.0003315,5]
[361961690,1747909865345,-1215.41,0.0003315,5]
[361961691,1747909865355,-420.0,0.0003315,5]
[361961692,1747909865365,-418.6603273,0.0003315,5]
[361961693,1747909865374,-1094.87,0.0003315,5]
[361961694,1747909865384,-420.0,0.0003315,5]
[361961695,1747909865394,-420.0,0.0003315,5]
[361961696,1747909865403,-472.81,0.0003315,5]
[361961697,1747909865413,-420.0,0.0003315,5]
[361961698,1747909865422,-420.0,0.0003315,5]
[361961699,1747909865432,-988.72,0.0003315,5]
[361961700,1747909865441,-420.0,0.0003315,5]
[361961701,1747909865451,-1613.7,0.0003315,5]
[361961702,1747909865461,-3144.82,0.0003315,5]
[361961703,1747909865471,-6704.11,0.0003315,5]
[361961704,1747909865480,-420.0,0.0003315,5]
[361961705,1747909865489,-420.0,0.0003315,5]
[361961706,1747909865498,-657.77,0.0003315,5]
[361961707,1747909865508,-420.0,0.0003315,5]
[361961708,1747909865518,-734.05,0.0003315,5]
[361961709,1747909865527,-420.0,0.0003315,5]
[361961710,1747909865536,-420.0,0.0003315,5]
[361961711,1747909865546,-420.0,0.0003315,5]
[361961712,1747909865556,-420.0,0.0003315,5]
[361961713,1747909865565,-577.71,0.0003315,5]
[361961714,1747909865575,-420.0,0.0003315,5]
[361961715,1747909865585,-420.0,0.0003315,5]
[361961716,1747909865595,-2140.64,0.0003315,5]
[361961717,1747909865604,-420.0,0.0003315,5]
[361961718,1747909865614,-420.0,0.0003315,5]
[361961719,1747909865623,-420.0,0.0003315,5]
[361961720,1747909865633,-2078.54,0.0003315,5]
[361961721,1747909865643,-420.0,0.0003315,5]
[361961722,1747909865652,-420.0,0.0003315,5]
[361961723,1747909865662,-919.89,0.0003315,5]
[361961724,1747909865672,-420.0,0.0003315,5]
[361961725,1747909865681,-1108.32,0.0003315,5]
[361961726,1747909865691,-420.0,0.0003315,5]
[361961727,1747909865701,-532.99,0.0003315,5]
[361961728,1747909865716,-1066.05,0.0003315,5]
[361961729,1747909865726,-849.87,0.0003315,5]
[361961730,1747909865736,-1387.73,0.0003315,5]
[361961731,1747909865747,-1178.95,0.0003315,5]
[361961732,1747909865757,-483.52,0.0003315,5]
[361961733,1747909865767,-1544.59,0.0003315,5]
[361961734,1747909865777,-1117.72,0.0003315,5]
[361961735,1747909865788,-31786.82,0.0003315,5]
[361961736,1747909865798,-957.58,0.0003315,5]
[361961737,1747909865808,-1381.24,0.0003315,5]
[361961738,1747909865818,-547.33,0.0003315,5]
[361961739,1747909865828,-1301.94,0.0003315,5]
[361961740,1747909865838,-420.0,0.0003315,5]
[361961741,1747909865848,-605.64,0.0003315,5]
[361961742,1747909865857,-420.0,0.0003315,5]
[361961743,1747909865867,-883.79,0.0003315,5]
[361961744,1747909865876,-707.16,0.0003315,5]
[361961745,1747909865886,-420.0,0.0003315,5]
[361961746,1747909865895,-420.0,0.0003315,5]
[361961747,1747909865905,-420.0,0.0003315,5]
[361961748,1747909865915,-420.0,0.0003315,5]
[361961749,1747909865925,-452.5,0.0003315,5]
[361961750,1747909865934,-592.98,0.0003315,5]
[361961751,1747909865944,-1277.66,0.0003315,5]
[361961752,1747909865954,-420.0,0.0003315,5]
[361961753,1747909865963,-420.0,0.0003315,5]
[361961754,1747909865973,-381.1255307,0.0003315,5]
[361961755,1747909865983,-739.3,0.0003315,5]
[361961756,1747909865992,-875.5,0.0003315,5]
[361961757,1747909866002,-1464.1,0.0003315,5]
[361961758,1747909866014,-420.0,0.0003315,5]
[361961759,1747909866024,-932.89,0.0003315,5]
[361961760,1747909866034,-420.0,0.0003315,5]
[361961761,1747909866044,-1244.18,0.0003315,5]
[361961762,1747909866054,-420.0,0.0003315,5]
[361961763,1747909866064,-420.0,0.0003315,5]
[361961764,1747909866074,-1593.29,0.0003315,5]
[361961765,1747909866083,-1865.15,0.0003315,5]
[361961766,1747909866093,-420.0,0.0003315,5]
[361961767,1747909866103,-1670.07,0.0003315,5]
[361961768,1747909866112,-632.33,0.0003315,5]
[361961769,1747909866122,-801.06,0.0003315,5]
[361961770,1747909866132,-420.0,0.0003315,5]
[361961771,1747909866142,-1034.29,0.0003315,5]
[361961772,1747909866152,-482.03,0.0003315,5]
[361961773,1747909866162,-1090.43,0.0003315,5]
[361961774,1747909866171,-1502.42,0.0003315,5]
[361961775,1747909866182,-420.0,0.0003315,5]
[361961776,1747909866193,-420.0,0.0003315,5]
[361961777,1747909866203,-420.0,0.0003315,5]
[361961778,1747909866212,-420.0,0.0003315,5]
[361961779,1747909866222,-1858.85,0.0003315,5]
[361961780,1747909866232,-1252.43,0.0003315,5]
[361961781,1747909866241,-420.0,0.0003315,5]
[361961782,1747909866251,-420.0,0.0003315,5]
[361961783,1747909866261,-687.61,0.0003315,5]
[361961784,1747909866271,-420.0,0.0003315,5]
[361961785,1747909866280,-15602.3,0.0003315,5]
[361961786,1747909866290,-420.0,0.0003315,5]
[361961787,1747909866300,-420.0,0.0003315,5]
[361961788,1747909866310,-535.07,0.0003315,5]
[361961789,1747909866320,-420.0,0.0003315,5]
[361961790,1747909866330,-420.0,0.0003315,5]
[361961791,1747909866340,-523.1,0.0003315,5]
[361961792,1747909866350,-420.0,0.0003315,5]
[361961793,1747909866359,-420.0,0.0003315,5]
[361961794,1747909866369,-457.39,0.0003315,5]
[361961795,1747909866379,-4884.69,0.0003315,5]
[361961796,1747909866389,-430.4,0.0003315,5]
[361961797,1747909866399,-420.0,0.0003315,5]
[361961798,1747909866408,-1346.04,0.0003315,5]
[361961799,1747909866418,-420.0,0.0003315,5]
[361961800,1747909866427,-816.42,0.0003315,5]
[361961801,1747909866437,-151.0,0.0003315,7]
[361961802,1747909866446,-151.0,0.0003315,7]
[361961803,1747909866456,-151.0,0.0003315,7]
[361961804,1747909866465,-884.71,0.0003315,5]
[361961805,1747909866475,-817.29,0.0003315,5]
[361961806,1747909866484,-420.0,0.0003315,5]
[361961807,1747909866494,-1690.01,0.0003315,5]
[361961808,1747909866504,-1722.64,0.0003315,5]
[361961809,1747909866514,-1305.56,0.0003315,5]
[361961810,1747909866524,-151.0,0.0003315,7]
[361961811,1747909866534,-466.97,0.0003315,5]
[361961812,1747909866544,-151.0,0.0003315,7]
[361961813,1747909866554,-151.0,0.0003315,7]
[361961814,1747909866564,-420.0,0.0003315,5]
[361961815,1747909866574,-554.31,0.0003315,5]
[361961816,1747909866583,-420.0,0.0003315,5]
[361961817,1747909866697,-420.0,0.0003315,5]
[361961818,1747909866712,-420.0,0.0003315,5]
[361961819,1747909866722,-420.0,0.0003315,5]
[361961820,1747909866732,-420.0,0.0003315,5]
[361961821,1747909866743,-420.0,0.0003315,5]
[361961822,1747909866753,-420.0,0.0003315,5]
[361961823,1747909866762,-420.0,0.0003315,5]
[361961824,1747909866771,-1134.22,0.0003315,5]
[361961825,1747909866783,-637.461247,0.0003315,7]
[361961826,1747909866793,-420.0,0.0003315,5]
[361961827,1747909866803,-637.461247,0.0003315,7]
[361961828,1747909866813,-2536.46,0.0003315,3]
[361961829,1747909866822,-637.461247,0.0003315,7]
[361961830,1747909866832,-477.6,0.0003315,5]
[361961831,1747909866842,-453.03,0.0003315,5]
[361961832,1747909866852,-420.0,0.0003315,5]
[361961833,1747909866862,-637.461247,0.0003315,7]
[361961834,1747909866872,-637.461247,0.0003315,7]
[361961835,1747909866882,-1481.7,0.0003315,5]
[361961836,1747909866892,-637.461247,0.0003315,7]
[361961837,1747909866901,-10515.79,0.0003315,2]
[361961838,1747909866911,-486.42,0.0003315,5]
[361961839,1747909866920,-420.0,0.0003315,5]
[361961840,1747909866930,-420.0,0.0003315,5]
[361961841,1747909866939,-516.67,0.0003315,5]
[361961842,1747909866949,-420.0,0.0003315,5]
[361961843,1747909866958,-437.88,0.0003315,5]
[361961844,1747909866968,-699.29,0.0003315,5]
[361961845,1747909866977,-420.0,0.0003315,5]
[361961846,1747909866987,-458.45,0.0003315,5]
[361961847,1747909866997,-1541.35,0.0003315,5]
[361961848,1747909867007,-420.0,0.0003315,5]
[361961849,1747909867016,-420.0,0.0003315,5]
[361961850,1747909867026,-1111.33,0.0003315,5]
[361961851,1747909867035,-1424.95,0.0003315,5]
[361961852,1747909867045,-326.237546,0.0003315,7]
[361961853,1747909867055,-706.93,0.0003315,5]
[361961854,1747909867065,-326.237546,0.0003315,7]
[361961855,1747909867074,-326.237546,0.0003315,7]
[361961856,1747909867084,-420.0,0.0003315,5]
[361961857,1747909867094,-920.31,0.0003315,5]
[361961858,1747909867103,-546.78,0.0003315,5]
[361961859,1747909867112,-3088.43,0.0003315,5]
[361961860,1747909867123,-420.0,0.0003315,5]
[361961861,1747909867132,-362.54918757,0.0003315,5]
[361961862,1747909867142,-420.0,0.0003315,5]
[361961863,1747909867152,-2387.68,0.0003315,5]
[361961864,1747909867161,-326.237546,0.0003315,7]
[361961865,1747909867170,-1350.38,0.0003315,5]
[361961866,1747909867180,-829.33,0.0003315,5]
[361961867,1747909867189,-326.237546,0.0003315,7]
[361961868,1747909867199,-420.0,0.0003315,5]
[361961869,1747909867208,-420.0,0.0003315,5]
[361961870,1747909867217,-420.0,0.0003315,5]
[361961871,1747909867227,-326.237546,0.0003315,7]
[361961872,1747909867236,-420.0,0.0003315,5]
[361961873,1747909867246,-2584.37,0.0003315,5]
[361961874,1747909867256,-420.0,0.0003315,5]
[361961875,1747909867265,-420.0,0.0003315,5]
[361961876,1747909867277,-497.63,0.0003315,5]
[361961877,1747909867286,-420.0,0.0003315,5]
[361961878,1747909867298,-675.81,0.0003315,5]
[361961879,1747909867307,-1328.1,0.0003315,5]
[361961880,1747909867317,-536.67,0.0003315,5]
[361961881,1747909867327,-420.0,0.0003315,5]
[361961882,1747909867337,-420.0,0.0003315,5]
[361961883,1747909867346,-613.9,0.0003315,5]
[361961884,1747909867354,-420.0,0.0003315,5]
[361961885,1747909867363,-420.0,0.0003315,5]
[361961886,1747909867371,-1021.65,0.0003315,5]
[361961887,1747909867380,-420.0,0.0003315,5]
[361961888,1747909867389,-420.0,0.0003315,5]
[361961889,1747909867399,-707.09,0.0003315,5]
[361961890,1747909867409,-420.0,0.0003315,5]
[361961891,1747909867418,-420.0,0.0003315,5]
[361961892,1747909867428,-463.66,0.0003315,5]
[361961893,1747909867440,-886.14,0.0003315,5]
[361961894,1747909867451,-420.0,0.0003315,5]
[361961895,1747909867460,-1087.99,0.0003315,5]
[361961896,1747909867470,-703.71,0.0003315,5]
[361961897,1747909867479,-420.0,0.0003315,5]
[361961898,1747909867489,-420.0,0.0003315,5]
[361961899,1747909867499,-151.0,0.0003315,7]
[361961900,1747909867509,-151.0,0.0003315,7]
[361961901,1747909867519,-792.34,0.0003315,5]
[361961902,1747909867529,-151.0,0.0003315,7]
[361961903,1747909867538,-2540.74,0.0003315,5]
[361961904,1747909867547,-610.78,0.0003315,5]
[361961905,1747909867557,-420.0,0.0003315,5]
[361961906,1747909867566,-619.61,0.0003315,5]
[361961907,1747909867575,-420.0,0.0003315,5]
[361961908,1747909867584,-738.94,0.0003315,5]
[361961909,1747909867594,-702.12,0.0003315,5]
[361961910,1747909867603,-1327.34,0.0003315,5]
[361961911,1747909867612,-728.27,0.0003315,5]
[361961912,1747909867622,-1284.0,0.0003315,5]
[361961913,1747909867631,-420.0,0.0003315,5]
[361961914,1747909867640,-189.06556656,0.0003315,5]
[361961915,1747909867650,-420.0,0.0003315,5]
[361961916,1747909867659,-420.0,0.0003315,5]
[361961917,1747909867669,-150.0,0.00033161,2]
[361961918,1747909867680,-500.0,0.00033161,2]
[361961919,1747909867690,-151.0,0.00033162,7]
[361961920,1747909867698,-424.835292,0.00033162,7]
[361961921,1747909867712,-424.835292,0.00033162,7]
[361961922,1747909867723,-400.0,0.0003317,2]
[361961923,1747909867732,-700.0,0.0003317,2]
[361961924,1747909867742,-400.0,0.0003317,2]
[361961925,1747909867752,-1200.0,0.0003317,2]
[361961926,1747909867761,-500.0,0.00033173,5]
[361961927,1747909867770,-501.31481214,0.00033173,5]
[361961928,1747909867780,-500.0,0.00033173,5]
[361961929,1747909867796,-500.0,0.00033173,5]
[361961930,1747909867805,-500.0,0.00033173,5]
[361961931,1747909867815,-264.21683485,0.00033173,5]
[361961932,1747909867825,-999.0,0.00033178,30]
[361961933,1747909867834,-999.0,0.00033178,30]
[361961934,1747909867844,-999.0,0.00033178,30]
[361961935,1747909867854,-999.0,0.00033178,30]
[361961936,1747909867863,-307.8886222,0.00033178,30]
[361961937,1747909867872,-151.0,0.00033178,7]
[361961938,1747909867882,-328.413703,0.00033178,7]
[361961939,1747909867891,-328.413703,0.00033178,7]
[361961940,1747909867900,-326.237546,0.00033178,7]
[361961941,1747909867909,-326.237546,0.00033178,7]
[361961942,1747909867919,-151.0,0.0003318,7]
[361961943,1747909867928,-150.0,0.00033189,2]
[361961944,1747909867937,-597.08217457,0.00033189,2]
[361961945,1747909867946,-500.0,0.00033189,5]
[361961946,1747909867956,-50839.73960611,0.0003319,2]
[361961947,1747909867965,-152.251292,0.0003319,7]
[361961948,1747909867974,-151.0,0.0003319,7]
[361961949,1747909867983,-151.0,0.0003319,7]
[361961950,1747909867992,-151.0,0.0003319,7]
[361961951,1747909868001,-151.0,0.000332,7]
[361961952,1747909868010,-150.0,0.00033216,2]
[361961953,1747909868019,-223.79607025,0.00033244,2]
[361961954,1747909868028,-501.16211184,0.00033259,2]
[361961955,1747909868037,-500.0,0.00033299,5]
[361961956,1747909868047,-5504.96,0.000333,2]
[361961957,1747909868056,-265.100721,0.000333,7]
[361961958,1747909868065,-265.100721,0.000333,7]
[361961959,1747909868074,-622.65878205,0.00033324,2]
[361961960,1747909868083,-246.319255,0.00033382,7]
[361961961,1747909868092,-246.319255,0.00033382,7]
[361961962,1747909868101,-153.79076964,0.00033393,15]
[361961963,1747909868110,-220.75,0.000334,2]
[361961964,1747909868120,-6974.67,0.000334,2]
[361961965,1747909868128,-2174.61,0.000334,2]
[361961966,1747909868138,-420.0,0.00033423,5]
[361961967,1747909868149,-420.0,0.00033423,5]
[361961968,1747909868158,-420.0,0.00033423,5]
[361961969,1747909868168,-500.0,0.00033423,5]
[361961970,1747909868178,-500.0,0.00033423,5]
[361961971,1747909868187,-500.0,0.00033423,5]
[361961972,1747909868197,-150.0,0.00033423,3]
[361961973,1747909868206,-163.34367156,0.00033423,3]
[361961974,1747909868215,-265.100721,0.00033424,7]
[361961975,1747909868227,-265.100721,0.00033424,7]
[361961976,1747909868237,-265.100721,0.00033424,7]
[361961977,1747909868246,-265.100717,0.00033424,7]
[361961978,1747909868255,-246.319255,0.00033424,7]
[361961979,1747909868264,-246.319255,0.00033424,7]
[361961980,1747909868273,-246.319255,0.00033424,7]
[361961981,1747909868282,-246.319247,0.00033424,7]
[361961982,1747909868290,-151.0,0.00033424,7]
[361961983,1747909868299,-151.0,0.00033424,7]
[361961984,1747909868307,-151.0,0.00033424,7]
[361961985,1747909868317,-221.735082,0.00033424,7]
[361961986,1747909868326,-604.45,0.00033424,5]
[361961987,1747909868335,-420.0,0.00033424,5]
[361961988,1747909868344,-420.0,0.00033424,5]
[361961989,1747909868353,-549.97,0.00033424,5]
[361961990,1747909868362,-762.17,0.00033424,5]
[361961991,1747909868371,-1269.61,0.00033424,5]
[361961992,1747909868380,-489.14,0.00033424,5]
[361961993,1747909868389,-1007.4,0.00033424,5]
[361961994,1747909868399,-420.0,0.00033424,5]
[361961995,1747909868408,-618.54,0.00033424,5]
[361961996,1747909868417,-420.0,0.00033424,5]
[361961997,1747909868426,-420.0,0.00033424,5]
[361961998,1747909868435,-420.0,0.00033424,5]
[361961999,1747909868444,-420.0,0.00033424,5]
[361962000,1747909868453,-420.0,0.00033424,5]
[361962001,1747909868462,-1111.99,0.00033424,5]
[361962002,1747909868471,-611.86,0.00033424,5]
[361962003,1747909868480,-334.68824937,0.00033424,5]
[361962004,1747909868489,-420.0,0.00033424,5]
[361962005,1747909868498,-499.36,0.00033424,5]
[361962006,1747909868507,-420.0,0.00033424,5]
[361962007,1747909868516,-420.0,0.00033424,5]
[361962008,1747909868525,-420.0,0.00033424,5]
[361962009,1747909868534,-433.38,0.00033424,5]
[361962010,1747909868543,-420.0,0.00033424,5]
[361962011,1747909868552,-420.0,0.00033424,5]
[361962012,1747909868562,-420.0,0.00033424,5]
[361962013,1747909868571,-420.0,0.00033424,5]
[361962014,1747909868581,-643.71,0.00033424,5]
[361962015,1747909868591,-164.71432362,0.00033424,5]
[361962016,1747909868600,-420.0,0.00033424,5]
[361962017,1747909868609,-420.0,0.00033424,5]
[361962018,1747909868618,-420.0,0.00033424,5]
[361962019,1747909868628,-541.47,0.00033424,5]
[361962020,1747909868637,-1118.56,0.00033424,5]
[361962021,1747909868647,-420.0,0.00033424,5]
[361962022,1747909868657,-420.0,0.00033424,5]
[361962023,1747909868666,-420.0,0.00033424,5]
[361962024,1747909868676,-753.63,0.00033424,5]
[361962025,1747909868685,-470.82,0.00033424,5]
[361962026,1747909868694,-420.0,0.00033424,5]
[361962027,1747909868705,-740.81,0.00033424,5]
[361962028,1747909868715,-420.0,0.00033424,5]
[361962029,1747909868724,-1238.09,0.00033424,5]
[361962030,1747909868734,-420.0,0.00033424,5]
[361962031,1747909868743,-420.0,0.00033424,5]
[361962032,1747909868753,-420.0,0.00033424,5]
[361962033,1747909868763,-420.0,0.00033424,5]
[361962034,1747909868772,-420.0,0.00033424,5]
[361962035,1747909868782,-420.0,0.00033424,5]
[361962036,1747909868791,-420.0,0.00033424,5]
[361962037,1747909868801,-853.96,0.00033424,5]
[361962038,1747909868812,-1031.41,0.00033424,5]
[361962039,1747909868822,-420.0,0.00033424,5]
[361962040,1747909868831,-1207.72,0.00033424,5]
[361962041,1747909868840,-420.0,0.00033424,5]
[361962042,1747909868851,-420.0,0.00033424,5]
[361962043,1747909868870,-1093.12,0.00033424,5]
[361962044,1747909868879,-420.0,0.00033424,5]
[361962045,1747909868889,-420.0,0.00033424,5]
[361962046,1747909868898,-420.0,0.00033424,5]
[361962047,1747909868908,-420.0,0.00033424,5]
[361962048,1747909868917,-420.0,0.00033424,5]
[361962049,1747909868927,-1404.26,0.00033424,5]
[361962050,1747909868936,-420.0,0.00033424,5]
[361962051,1747909868945,-565.0,0.00033424,5]
[361962052,1747909868954,-1034.54,0.00033424,5]
[361962053,1747909868963,-461.34,0.00033424,5]
[361962054,1747909868973,-420.0,0.00033424,5]
[361962055,1747909868982,-420.0,0.00033424,5]
[361962056,1747909868991,-488.02,0.00033424,5]
[361962057,1747909869008,-674.27,0.00033424,5]
[361962058,1747909869017,-939.79,0.00033424,5]
[361962059,1747909869026,-420.0,0.00033424,5]
[361962060,1747909869035,-457.49,0.00033424,5]
[361962061,1747909869043,-1253.18,0.00033424,5]
[361962062,1747909869052,-420.0,0.00033424,5]
[361962063,1747909869062,-810.22,0.00033424,5]
[361962064,1747909869071,-420.0,0.00033424,5]
[361962065,1747909869081,-1007.89,0.00033424,5]
[361962066,1747909869090,-924.14,0.00033424,5]
[361962067,1747909869099,-420.0,0.00033424,5]
[361962068,1747909869108,-420.0,0.00033424,5]
[361962069,1747909869117,-1055.44,0.00033424,5]
[361962070,1747909869125,-420.0,0.00033424,5]
[361962071,1747909869134,-420.0,0.00033424,5]
[361962072,1747909869143,-1132.27,0.00033424,5]
[361962073,1747909869152,-420.0,0.00033424,5]
[361962074,1747909869161,-420.0,0.00033424,5]
[361962075,1747909869170,-445.53,0.00033424,5]
[361962076,1747909869179,-420.0,0.00033424,5]
[361962077,1747909869188,-374.96230998,0.00033424,5]
[361962078,1747909869197,-445.33,0.00033424,5]
[361962079,1747909869206,-488.83,0.00033424,5]
[361962080,1747909869214,-420.0,0.00033424,5]
[361962081,1747909869223,-420.0,0.00033424,5]
[361962082,1747909869232,-479.08,0.00033424,5]
[361962083,1747909869241,-420.0,0.00033424,5]
[361962084,1747909869250,-1213.63,0.00033424,5]
[361962085,1747909869260,-420.0,0.00033424,5]
[361962086,1747909869269,-420.0,0.00033424,5]
[361962087,1747909869278,-328.48265518,0.00033424,5]
[361962088,1747909869288,-464.81,0.00033424,5]
[361962089,1747909869297,-651.85,0.00033424,5]
[361962090,1747909869308,-420.0,0.00033424,5]
[361962091,1747909869320,-420.0,0.00033424,5]
[361962092,1747909869331,-420.0,0.00033424,5]
[361962093,1747909869342,-290.72967949,0.00033424,5]
[361962094,1747909869352,-330.5871699,0.00033424,5]
[361962095,1747909869941,-89.4128301,0.00033424,5]
[361962096,1747909869951,-356.8979969,0.00033424,5]
[361962097,1747909869992,-63.1020031,0.00033424,5]
[361962098,1747909870002,-420.0,0.00033424,5]
[361962099,1747909870011,-54.78214481,0.00033424,5]
[361962100,1747909870023,-456.80785519,0.00033424,5]
[361962101,1747909870033,-420.0,0.00033424,5]
[361962102,1747909870042,-443.83,0.00033424,5]
[361962103,1747909870051,-506.16741819,0.00033424,5]
[361962104,1747909870060,-420.0,0.00033424,5]
[361962105,1747909870070,-443.66,0.00033424,5]
[361962106,1747909870079,-329.5022952,0.00033424,5]
[361962107,1747909870091,-90.4977048,0.00033424,5]
[361962108,1747909870100,-154.32198042,0.00033424,7]
[361962109,1747909870110,-420.0,0.00033424,5]
[361962110,1747909870120,-528.37,0.00033424,5]
[361962111,1747909870130,-552.98,0.00033424,5]
[361962112,1747909870140,-828.07,0.00033424,5]
[361962113,1747909870149,-572.51,0.00033424,5]
[361962114,1747909870159,-722.07,0.00033424,5]
[361962115,1747909870168,-331.23026478,0.00033424,5]
[361962116,1747909870181,-98.01973522,0.00033424,5]
[361962117,1747909870190,-420.0,0.00033424,5]
[361962118,1747909870199,-1154.25,0.00033424,5]
[361962119,1747909870208,-420.0,0.00033424,5]
[361962120,1747909870217,-1200.25,0.00033424,5]
[361962121,1747909870227,-498.24131492,0.00033424,5]
[361962122,1747909870237,-6.91999713,0.00033424,5]
[361962123,1747909871285,-420.0,0.00032876,5]
[361962124,1747909871296,-420.0,0.0003315,5]
[361962125,1747909871306,-155.27957,0.0003315,7]
[361962126,1747909871316,-155.27957,0.0003315,7]
[361962127,1747909871326,-413.08000287,0.00033424,5]
[361962128,1747909871336,-446.05,0.00033424,5]
[361962129,1747909871346,-420.0,0.00033424,5]
[361962130,1747909871356,-420.0,0.00033424,5]
[361962131,1747909871366,-420.0,0.00033424,5]
[361962132,1747909871376,-420.0,0.00033424,5]
[361962133,1747909871385,-420.0,0.00033424,2]
[361962134,1747909871396,-432.53,0.00033424,5]
[361962135,1747909871405,-420.0,0.00033424,5]
[361962136,1747909871415,-562.92,0.00033424,5]
[361962137,1747909871425,-250.69211995,0.00033424,5]
[361962138,1747909871435,-420.0,0.00033424,5]
[361962139,1747909871446,-420.0,0.00033424,5]
[361962140,1747909871456,-825.4,0.00033424,5]
[361962141,1747909871466,-363.91926443,0.00033424,5]